fUST/lending_fUST_20240516
["ID","MTS","AMOUNT","RATE_DAILY","PERIOD"]
[327157711,1715864850192,-1064.25319226,0.00016436,2]
[327157712,1715864850213,-2927.72348981,0.00016436,2]
[327157713,1715864850232,-415.65449111,0.00016437,2]
[327157714,1715864850251,-8737.86274285,0.00016437,2]
[327157715,1715864850271,-500.0,0.00016438,2]
[327157716,1715864850291,-500.0,0.00016438,2]
[327157717,1715864850316,-633.93,0.00016438,2]
[327157718,1715864850337,-500.0,0.00016438,2]
[327157719,1715864850357,-500.0,0.00016438,2]
[327157720,1715864850377,-613.49,0.00016438,2]
[327157721,1715864850397,-500.0,0.00016438,2]
[327157722,1715864850417,-500.0,0.00016438,2]
[327157723,1715864850436,-747.88,0.00016438,2]
[327157724,1715864850456,-500.0,0.00016438,2]
[327157725,1715864850476,-500.0,0.00016438,2]
[327157726,1715864850496,-500.0,0.00016438,2]
[327157727,1715864850524,-500.0,0.00016438,2]
[327157728,1715864850544,-500.0,0.00016438,2]
[327157729,1715864850567,-1075.91,0.00016438,2]
[327157730,1715864850587,-502.56,0.00016438,2]
[327157731,1715864850610,-500.0,0.00016438,2]
[327157732,1715864850630,-500.0,0.00016438,2]
[327157733,1715864850651,-802.26,0.00016438,2]
[327157734,1715864850672,-500.0,0.00016438,2]
[327157735,1715864850693,-356.23489718,0.00016438,2]
[327157736,1715864850886,-500.0,0.00016438,2]
[327157737,1715864850908,-500.0,0.00016438,2]
[327157738,1715864850929,-500.0,0.00016438,2]
[327157739,1715864850950,-500.0,0.00016438,2]
[327157740,1715864850971,-500.0,0.00016438,2]
[327157741,1715864850991,-500.0,0.00016438,2]
[327157742,1715864851012,-644.55,0.00016438,2]
[327157743,1715864851033,-500.0,0.00016438,2]
[327157744,1715864851054,-500.0,0.00016438,2]
[327157745,1715864851080,-500.0,0.00016438,2]
[327157746,1715864851100,-500.0,0.00016438,2]
[327157747,1715864851121,-500.0,0.00016438,2]
[327157748,1715864851142,-500.0,0.00016438,2]
[327157749,1715864851170,-500.0,0.00016438,2]
[327157750,1715864851191,-500.0,0.00016438,2]
[327157751,1715864851211,-500.0,0.00016438,2]
[327157752,1715864851231,-500.0,0.00016438,2]
[327157753,1715864851251,-500.0,0.00016438,2]
[327157754,1715864851273,-500.0,0.00016438,2]
[327157755,1715864851295,-557.0833262,0.00016438,2]
[327157756,1715864851319,-500.0,0.00016438,2]
[327157757,1715864851340,-500.0,0.00016438,2]
[327157758,1715864851363,-500.0,0.00016438,2]
[327157759,1715864851385,-500.0,0.00016438,2]
[327157760,1715864851407,-500.0,0.00016438,2]
[327157761,1715864851429,-500.0,0.00016438,2]
[327157762,1715864851451,-714.32,0.00016438,2]
[327157763,1715864851473,-500.0,0.00016438,2]
[327157764,1715864851496,-500.89204277,0.00016438,2]
[327157765,1715864851518,-500.0,0.00016438,2]
[327157766,1715864851537,-500.0,0.00016438,2]
[327157767,1715864851564,-702.31,0.00016438,2]
[327157768,1715864851586,-504.91780053,0.00016438,2]
[327157769,1715864851607,-1000.0,0.00016438,2]
[327157770,1715864851628,-500.0,0.00016438,2]
[327157771,1715864851648,-500.0,0.00016438,2]
[327157772,1715864851670,-500.0,0.00016438,2]
[327157773,1715864851691,-500.0,0.00016438,2]
[327157774,1715864851713,-500.0,0.00016438,2]
[327157775,1715864851735,-236.0808926,0.00016438,2]
[327157776,1715864851760,-430.25632198,0.00016438,2]
[327157777,1715864851781,-500.44779418,0.00016438,2]
[327157778,1715864851805,-500.0,0.00016438,2]
[327157779,1715864851827,-500.0,0.00016438,2]
[327157780,1715864851851,-903.21,0.00016438,2]
[327157781,1715864851871,-500.0,0.00016438,2]
[327157782,1715864851891,-500.0,0.00016438,2]
[327157783,1715864851910,-500.0,0.00016438,2]
[327157784,1715864851930,-500.0,0.00016438,2]
[327157785,1715864851950,-788.29,0.00016438,2]
[327157786,1715864851969,-500.0,0.00016438,2]
[327157787,1715864851990,-500.0,0.00016438,2]
[327157788,1715864852012,-1013.64,0.00016438,2]
[327157789,1715864852033,-496.78515676,0.00016438,2]
[327157790,1715864852054,-500.0,0.00016438,2]
[327157791,1715864852077,-702.67,0.00016438,2]
[327157792,1715864852097,-3915.31,0.00016438,2]
[327157793,1715864852117,-510.51549221,0.00016438,2]
[327157794,1715864852138,-526.11989384,0.00016438,2]
[327157795,1715864852161,-500.0,0.00016438,2]
[327157796,1715864852182,-500.0,0.00016438,2]
[327157797,1715864852205,-1000.59,0.00016438,2]
[327157798,1715864852226,-500.0,0.00016438,2]
[327157799,1715864852246,-610.32,0.00016438,2]
[327157800,1715864852268,-697.31,0.00016438,2]
[327157801,1715864852290,-500.0,0.00016438,2]
[327157802,1715864852314,-500.0,0.00016438,2]
[327157803,1715864852336,-500.0,0.00016438,2]
[327157804,1715864852358,-500.0,0.00016438,2]
[327157805,1715864852381,-345.36765703,0.00016438,2]
[327157806,1715864852403,-501.91884888,0.00016438,2]
[327157807,1715864852425,-508.61465768,0.00016438,2]
[327157808,1715864852445,-500.0,0.00016438,2]
[327157809,1715864852466,-1821.46,0.00016438,2]
[327157810,1715864852486,-500.0,0.00016438,2]
[327157811,1715864852507,-500.0,0.00016438,2]
[327157812,1715864852526,-327.83299677,0.00016438,2]
[327157813,1715864852546,-500.0,0.00016438,2]
[327157814,1715864852568,-500.0,0.00016438,2]
[327157815,1715864852588,-500.0,0.00016438,2]
[327157816,1715864852609,-500.0,0.00016438,2]
[327157817,1715864852629,-500.0,0.00016438,2]
[327157818,1715864852650,-120.15927945,0.00016438,2]
[327157858,1715865032519,-944.70803708,0.00016338,2]
[327157860,1715865032529,-379.84072055,0.00016438,2]
[327157862,1715865032539,-500.0,0.00016438,2]
[327157864,1715865032548,-502.83357333,0.00016438,2]
[327157866,1715865032559,-500.0,0.00016438,2]
[327157868,1715865032568,-290.65591094,0.00016438,2]
[327157870,1715865032580,-209.34408906,0.00016438,2]
[327157872,1715865032590,-500.0,0.00016438,2]
[327157874,1715865032600,-500.0,0.00016438,2]
[327157876,1715865032609,-731.82,0.00016438,2]
[327157878,1715865032618,-500.0,0.00016438,2]
[327157880,1715865032628,-500.0,0.00016438,2]
[327157882,1715865032637,-500.0,0.00016438,4]
[327157884,1715865032647,-500.0,0.00016438,2]
[327157886,1715865032656,-229.74987612,0.00016438,2]
[327157888,1715865032665,-500.0,0.00016438,2]
[327157890,1715865032675,-521.42,0.00016438,2]
[327157892,1715865032684,-393.61265773,0.00016438,2]
[327157894,1715865032694,-500.0,0.00016438,2]
[327157896,1715865032703,-621.41,0.00016438,2]
[327157898,1715865032715,-500.0,0.00016438,2]
[327157900,1715865032724,-500.0,0.00016438,2]
[327157902,1715865032733,-500.0,0.00016438,2]
[327157904,1715865032742,-505.98040871,0.00016438,2]
[327157906,1715865032751,-500.0,0.00016438,2]
[327157908,1715865032761,-500.0,0.00016438,2]
[327157910,1715865032770,-500.0,0.00016438,2]
[327157912,1715865032780,-692.17,0.00016438,2]
[327157914,1715865032790,-500.0,0.00016438,2]
[327157916,1715865032799,-500.0,0.00016438,2]
[327157918,1715865032813,-500.0,0.00016438,2]
[327157920,1715865032823,-500.0,0.00016438,2]
[327157922,1715865032833,-500.0,0.00016438,2]
[327157924,1715865032843,-500.0,0.00016438,2]
[327157926,1715865032854,-500.0,0.00016438,2]
[327157928,1715865032863,-519.53,0.00016438,2]
[327157931,1715865032873,-500.0,0.00016438,2]
[327157933,1715865032886,-500.0,0.00016438,2]
[327157935,1715865032895,-500.0,0.00016438,2]
[327157937,1715865032905,-649.66,0.00016438,2]
[327157939,1715865032914,-500.0,0.00016438,2]
[327157941,1715865032923,-500.0,0.00016438,2]
[327157959,1715865033088,-501.7695976,0.00016438,2]
[327157961,1715865033098,-749.49,0.00016438,2]
[327157963,1715865033108,-500.0,0.00016438,2]
[327157965,1715865033117,-500.0,0.00016438,2]
[327157967,1715865033127,-454.43504944,0.00016438,2]
[327157969,1715865033136,-875.35,0.00016438,2]
[327157971,1715865033146,-500.0,0.00016438,2]
[327157973,1715865033156,-500.0,0.00016438,2]
[327157975,1715865033165,-788.39,0.00016438,2]
[327157977,1715865033175,-500.0,0.00016438,2]
[327157979,1715865033185,-500.0,0.00016438,2]
[327157981,1715865033195,-500.0,0.00016438,2]
[327157983,1715865033204,-500.0,0.00016438,2]
[327157985,1715865033215,-500.0,0.00016438,2]
[327157987,1715865033225,-498.89990997,0.00016438,2]
[327157989,1715865033234,-500.0,0.00016438,2]
[327157991,1715865033244,-583.65,0.00016438,2]
[327157993,1715865033254,-500.0,0.00016438,2]
[327157995,1715865033263,-1820.76,0.00016438,2]
[327157997,1715865033272,-500.0,0.00016438,2]
[327157999,1715865033281,-1000.0,0.00016438,2]
[327158001,1715865033290,-500.0,0.00016438,2]
[327158003,1715865033300,-477.54477275,0.00016438,2]
[327158005,1715865033309,-610.61,0.00016438,2]
[327158007,1715865033318,-500.0,0.00016438,2]
[327158009,1715865033327,-500.0,0.00016438,2]
[327158011,1715865033337,-500.0,0.00016438,2]
[327158013,1715865033346,-700.9,0.00016438,2]
[327158014,1715865033356,-500.0,0.00016438,2]
[327158016,1715865033367,-1805.12,0.00016438,2]
[327158019,1715865033376,-500.0,0.00016438,2]
[327158020,1715865033386,-500.0,0.00016438,2]
[327158022,1715865033395,-151.0,0.00016438,2]
[327158024,1715865033405,-225.892135,0.00016438,2]
[327158026,1715865033415,-500.0,0.00016438,2]
[327158028,1715865033424,-500.0,0.00016438,2]
[327158030,1715865033434,-500.0,0.00016438,2]
[327158032,1715865033444,-500.0,0.00016438,2]
[327158034,1715865033454,-500.0,0.00016438,2]
[327158036,1715865033467,-500.0,0.00016438,2]
[327158038,1715865033476,-500.0,0.00016438,2]
[327158040,1715865033486,-2086.28,0.00016438,2]
[327158042,1715865033495,-500.0,0.00016438,2]
[327158044,1715865033504,-500.0,0.00016438,2]
[327158046,1715865033514,-1873.85,0.00016438,2]
[327158048,1715865033524,-1144.36,0.00016438,2]
[327158050,1715865033534,-383.51822389,0.00016438,2]
[327158538,1715865038464,-116.48177611,0.00016438,2]
[327158540,1715865038474,-798.14,0.00016438,2]
[327158542,1715865038484,-500.0,0.00016438,2]
[327158544,1715865038493,-384.91795252,0.00016438,2]
[327158546,1715865038504,-1275.57204748,0.00016438,2]
[327158548,1715865038514,-558.89196132,0.00016438,2]
[327158550,1715865038523,-500.0,0.00016438,2]
[327158552,1715865038533,-500.0,0.00016438,2]
[327158554,1715865038542,-1063.29,0.00016438,2]
[327158556,1715865038551,-500.0,0.00016438,2]
[327158558,1715865038560,-762.61,0.00016438,2]
[327158560,1715865038569,-166.105086,0.00016438,2]
[327158562,1715865038578,-398.59034813,0.00016438,2]
[327158564,1715865038587,-166.105086,0.00016438,2]
[327158566,1715865038597,-966.31,0.00016438,2]
[327158568,1715865038608,-501.17715103,0.00016438,2]
[327158570,1715865038618,-166.105086,0.00016438,2]
[327158572,1715865038627,-166.105086,0.00016438,2]
[327158574,1715865038637,-973.48,0.00016438,2]
[327158576,1715865038646,-1188.41,0.00016438,2]
[327158578,1715865038657,-500.0,0.00016438,2]
[327158580,1715865038666,-520.75446269,0.00016438,2]
[327158582,1715865038675,-500.0,0.00016438,2]
[327158584,1715865038684,-500.0,0.00016438,2]
[327158586,1715865038693,-1209.81,0.00016438,2]
[327158588,1715865038702,-500.0,0.00016438,2]
[327158590,1715865038714,-1597.63,0.00016438,2]
[327158592,1715865038723,-500.0,0.00016438,2]
[327158594,1715865038732,-1021.85,0.00016438,2]
[327158596,1715865038741,-823.86,0.00016438,2]
[327158598,1715865038751,-527.098126,0.00016438,2]
[327158600,1715865038760,-527.098126,0.00016438,2]
[327158603,1715865038771,-498.0705176,0.00016438,2]
[327158604,1715865038780,-151.0,0.00016438,2]
[327158607,1715865038791,-500.0,0.00016438,2]
[327158608,1715865038800,-527.098126,0.00016438,2]
[327158611,1715865038813,-527.098126,0.00016438,2]
[327158612,1715865038824,-598.93,0.00016438,2]
[327158614,1715865038833,-598.93,0.00016438,2]
[327158616,1715865038843,-500.0,0.00016438,2]
[327158618,1715865038854,-500.0,0.00016438,2]
[327158620,1715865038863,-709.7,0.00016438,2]
[327158622,1715865038873,-500.0,0.00016438,2]
[327158623,1715865038882,-552.75,0.00016438,2]
[327158624,1715865038891,-151.939006,0.00016438,2]
[327158625,1715865038902,-501.16489295,0.00016438,2]
[327158626,1715865038911,-735.81,0.00016438,2]
[327158628,1715865038920,-1192.08,0.00016438,2]
[327158630,1715865038929,-624.91,0.00016438,2]
[327158632,1715865038938,-347.15008399,0.00016438,2]
[327158634,1715865038947,-500.0,0.00016438,2]
[327158636,1715865038956,-1470.09,0.00016438,2]
[327158638,1715865038968,-500.0,0.00016438,2]
[327158640,1715865038977,-500.0,0.00016438,2]
[327158642,1715865038986,-510.96,0.00016438,2]
[327158644,1715865038996,-500.0,0.00016438,2]
[327158646,1715865039006,-500.0,0.00016438,2]
[327158648,1715865039015,-500.0,0.00016438,2]
[327158665,1715865039169,-586.84,0.00016438,2]
[327158668,1715865039180,-500.0,0.00016438,2]
[327158669,1715865039190,-500.0,0.00016438,2]
[327158671,1715865039200,-491.79982567,0.00016438,2]
[327158672,1715865039211,-948.91,0.00016438,2]
[327158673,1715865039222,-677.47,0.00016438,2]
[327158674,1715865039233,-500.0,0.00016438,2]
[327158675,1715865039243,-500.0,0.00016438,2]
[327158676,1715865039252,-577.88,0.00016438,2]
[327158677,1715865039261,-500.0,0.00016438,2]
[327158678,1715865039270,-500.0,0.00016438,2]
[327158679,1715865039280,-2517.82,0.00016438,2]
[327158680,1715865039289,-500.76,0.00016438,2]
[327158681,1715865039298,-500.0,0.00016438,2]
[327158682,1715865039307,-1258.73,0.00016438,2]
[327158683,1715865039317,-500.0,0.00016438,2]
[327158684,1715865039326,-500.0,0.00016438,2]
[327158685,1715865039335,-1540.79,0.00016438,2]
[327158686,1715865039344,-500.0,0.00016438,2]
[327158687,1715865039353,-500.0,0.00016438,2]
[327158688,1715865039362,-500.0,0.00016438,2]
[327158689,1715865039371,-1818.24,0.00016438,2]
[327158690,1715865039381,-500.0,0.00016438,2]
[327158691,1715865039390,-729.3,0.00016438,2]
[327158692,1715865039400,-2825.36,0.00016438,2]
[327158693,1715865039408,-735.62,0.00016438,2]
[327158694,1715865039418,-878.16,0.00016438,2]
[327158695,1715865039427,-500.0,0.00016438,2]
[327158696,1715865039436,-500.0,0.00016438,2]
[327158697,1715865039446,-502.10031603,0.00016438,2]
[327158699,1715865039455,-500.0,0.00016438,2]
[327158701,1715865039467,-500.0,0.00016438,2]
[327158703,1715865039476,-552.46,0.00016438,2]
[327158705,1715865039485,-473.98967014,0.00016438,2]
[327158707,1715865039493,-500.0,0.00016438,2]
[327158709,1715865039503,-500.0,0.00016438,2]
[327158711,1715865039512,-500.0,0.00016438,2]
[327158713,1715865039521,-500.0,0.00016438,2]
[327158715,1715865039532,-500.0,0.00016438,2]
[327158717,1715865039542,-500.0,0.00016438,2]
[327158719,1715865039551,-4708.85,0.00016438,2]
[327158721,1715865039560,-717.56,0.00016438,2]
[327158723,1715865039571,-1000.0,0.00016438,2]
[327158725,1715865039581,-500.0,0.00016438,2]
[327158727,1715865039590,-711.55,0.00016438,2]
[327158729,1715865039599,-512.76663329,0.00016438,2]
[327158731,1715865039609,-669.46,0.00016438,2]
[327158733,1715865039619,-2050.62,0.00016438,2]
[327158735,1715865039629,-500.0,0.00016438,2]
[327158737,1715865039639,-500.0,0.00016438,2]
[327158739,1715865039648,-500.0,0.00016438,2]
[327158741,1715865039658,-500.0,0.00016438,2]
[327158743,1715865039668,-500.0,0.00016438,2]
[327158745,1715865039678,-500.0,0.00016438,2]
[327158747,1715865039688,-500.0,0.00016438,2]
[327158749,1715865039698,-500.0,0.00016438,2]
[327158750,1715865039708,-500.0,0.00016438,2]
[327158753,1715865039722,-554.38738295,0.00016438,2]
[327158755,1715865039732,-151.0,0.00016438,2]
[327158756,1715865039742,-151.0,0.00016438,2]
[327158758,1715865039752,-151.0,0.00016438,2]
[327158761,1715865039762,-435.8434992,0.00016438,2]
[327158763,1715865039772,-151.0,0.00016438,2]
[327158765,1715865039781,-151.0,0.00016438,2]
[327158767,1715865039793,-667.1,0.00016438,2]
[327158769,1715865039803,-151.0,0.00016438,2]
[327158771,1715865039813,-1548.87,0.00016438,2]
[327158773,1715865039828,-500.0,0.00016438,2]
[327158775,1715865039840,-514.48724698,0.00016438,2]
[327158777,1715865039850,-500.0,0.00016438,2]
[327158779,1715865039861,-500.0,0.00016438,2]
[327158781,1715865039872,-500.0,0.00016438,2]
[327158783,1715865039881,-500.0,0.00016438,2]
[327158784,1715865039891,-500.0,0.00016438,2]
[327158786,1715865039903,-500.0,0.00016438,2]
[327158788,1715865039913,-500.0,0.00016438,2]
[327158790,1715865039923,-3285.68,0.00016438,2]
[327158792,1715865039932,-500.0,0.00016438,2]
[327158794,1715865039942,-357.22615259,0.00016438,2]
[327158796,1715865039951,-500.0,0.00016438,2]
[327158798,1715865039963,-500.0,0.00016438,2]
[327158800,1715865039972,-500.0,0.00016438,2]
[327158802,1715865039982,-888.61,0.00016438,2]
[327158804,1715865039992,-151.0,0.00016438,2]
[327158806,1715865040002,-151.0,0.00016438,2]
[327158808,1715865040012,-500.0,0.00016438,2]
[327158810,1715865040022,-151.0,0.00016438,2]
[327158812,1715865040032,-1348.21,0.00016438,2]
[327158814,1715865040042,-500.0,0.00016438,2]
[327158816,1715865040052,-1423.5,0.00016438,2]
[327158818,1715865040063,-500.34391902,0.00016438,2]
[327158820,1715865040073,-151.0,0.00016438,2]
[327158822,1715865040082,-151.0,0.00016438,2]
[327158824,1715865040093,-151.479914,0.00016438,2]
[327158826,1715865040102,-500.0,0.00016438,2]
[327158828,1715865040112,-1028.97,0.00016438,2]
[327158830,1715865040122,-500.0,0.00016438,2]
[327158832,1715865040131,-500.0,0.00016438,2]
[327158834,1715865040141,-500.0,0.00016438,2]
[327158836,1715865040152,-500.0,0.00016438,2]
[327158838,1715865040161,-791.11,0.00016438,2]
[327158840,1715865040170,-1398.6,0.00016438,2]
[327158842,1715865040180,-789.63,0.00016438,2]
[327158844,1715865040189,-500.0,0.00016438,2]
[327158846,1715865040199,-500.0,0.00016438,2]
[327158848,1715865040208,-1000.0,0.00016438,2]
[327158850,1715865040219,-500.0,0.00016438,2]
[327158853,1715865040229,-500.0,0.00016438,2]
[327158855,1715865040238,-500.0,0.00016438,2]
[327158856,1715865040247,-500.0,0.00016438,2]
[327158858,1715865040256,-500.0,0.00016438,2]
[327158860,1715865040266,-500.0,0.00016438,2]
[327158862,1715865040276,-500.0,0.00016438,2]
[327158865,1715865040285,-500.0,0.00016438,2]
[327158866,1715865040295,-4771.17,0.00016438,2]
[327158869,1715865040304,-500.0,0.00016438,2]
[327158871,1715865040314,-601.55,0.00016438,2]
[327158873,1715865040324,-629.85,0.00016438,2]
[327158875,1715865040334,-524.782606,0.00016438,2]
[327158877,1715865040344,-524.782606,0.00016438,2]
[327158879,1715865040353,-524.782606,0.00016438,2]
[327158881,1715865040363,-465.28140006,0.00016438,2]
[327158883,1715865040372,-191.41894,0.00016438,2]
[327158885,1715865040381,-191.41894,0.00016438,2]
[327158887,1715865040391,-524.782606,0.00016438,2]
[327158889,1715865040400,-191.41894,0.00016438,2]
[327158891,1715865040410,-524.782606,0.00016438,2]
[327158893,1715865040419,-524.782606,0.00016438,2]
[327158895,1715865040428,-500.0,0.00016438,2]
[327158897,1715865040437,-191.41894,0.00016438,2]
[327158899,1715865040447,-191.41894,0.00016438,2]
[327158901,1715865040456,-191.41894,0.00016438,2]
[327158903,1715865040468,-500.0,0.00016438,2]
[327158905,1715865040477,-452.1460465,0.00016438,2]
[327158907,1715865040488,-500.0,0.00016438,2]
[327158909,1715865040497,-500.0,0.00016438,2]
[327158911,1715865040506,-1349.811773,0.00016438,2]
[327158913,1715865040516,-1349.811773,0.00016438,2]
[327158915,1715865040526,-1349.811773,0.00016438,2]
[327158917,1715865040535,-500.0,0.00016438,2]
[327158918,1715865040545,-1349.811773,0.00016438,2]
[327158920,1715865040555,-500.0,0.00016438,2]
[327158922,1715865040565,-1082.92830635,0.00016438,2]
[327158926,1715865040585,-266.88346665,0.00016438,2]
[327158928,1715865040594,-1349.811773,0.00016438,2]
[327158929,1715865040604,-725.28,0.00016438,2]
[327158932,1715865040615,-500.0,0.00016438,2]
[327158933,1715865040624,-588.89,0.00016438,2]
[327158935,1715865040634,-500.0,0.00016438,2]
[327158938,1715865040643,-151.0,0.00016438,2]
[327158940,1715865040653,-151.0,0.00016438,2]
[327158942,1715865040662,-560.984138,0.00016438,2]
[327158943,1715865040672,-151.0,0.00016438,2]
[327158945,1715865040681,-560.984138,0.00016438,2]
[327158947,1715865040690,-560.984138,0.00016438,2]
[327158950,1715865040700,-928.95,0.00016438,2]
[327158951,1715865040710,-560.984138,0.00016438,2]
[327158953,1715865040721,-560.984138,0.00016438,2]
[327158956,1715865040731,-560.984138,0.00016438,2]
[327158958,1715865040740,-5509.66,0.00016438,2]
[327158960,1715865040749,-1447.58,0.00016438,2]
[327158962,1715865040758,-500.0,0.00016438,2]
[327158964,1715865040767,-1205.56,0.00016438,2]
[327158966,1715865040776,-864.98,0.00016438,2]
[327158967,1715865040785,-2285.91,0.00016438,2]
[327158969,1715865040795,-500.0,0.00016438,2]
[327158972,1715865040805,-937.3,0.00016438,2]
[327158974,1715865040816,-534.41326837,0.00016438,2]
[327158976,1715865040828,-737.73,0.00016438,2]
[327158977,1715865040837,-500.0,0.00016438,2]
[327158980,1715865040847,-500.0,0.00016438,2]
[327158982,1715865040857,-500.0,0.00016438,2]
[327158984,1715865040866,-500.0,0.00016438,2]
[327158985,1715865040876,-500.0,0.00016438,2]
[327158987,1715865040885,-791.39,0.00016438,2]
[327158990,1715865040897,-983.279887,0.00016438,2]
[327158991,1715865040907,-983.279887,0.00016438,2]
[327158994,1715865040916,-983.279887,0.00016438,2]
[327158996,1715865040926,-500.0,0.00016438,2]
[327158998,1715865040935,-983.279887,0.00016438,2]
[327158999,1715865040945,-2500.15,0.00016438,2]
[327159002,1715865040955,-983.279887,0.00016438,2]
[327159004,1715865040967,-983.279887,0.00016438,2]
[327159006,1715865040976,-500.0,0.00016438,2]
[327159007,1715865040985,-500.0,0.00016438,2]
[327159009,1715865040995,-151.0,0.00016438,2]
[327159011,1715865041005,-500.0,0.00016438,2]
[327159014,1715865041015,-500.0,0.00016438,2]
[327159016,1715865041024,-500.0,0.00016438,2]
[327159017,1715865041033,-757.09,0.00016438,2]
[327159019,1715865041042,-500.0,0.00016438,2]
[327159021,1715865041052,-2096.19,0.00016438,2]
[327159023,1715865041061,-576.65,0.00016438,2]
[327159025,1715865041071,-585.53,0.00016438,2]
[327159027,1715865041081,-940.51,0.00016438,2]
[327159029,1715865041090,-596.95,0.00016438,2]
[327159031,1715865041099,-3712.85,0.00016438,2]
[327159033,1715865041108,-668.19364,0.00016438,2]
[327159035,1715865041118,-500.0,0.00016438,2]
[327159037,1715865041127,-668.19364,0.00016438,2]
[327159039,1715865041137,-668.19364,0.00016438,2]
[327159041,1715865041146,-668.19364,0.00016438,2]
[327159043,1715865041155,-500.0,0.00016438,2]
[327159045,1715865041165,-253.15535672,0.00016438,2]
[327159047,1715865041175,-668.19364,0.00016438,2]
[327159049,1715865041184,-668.19364,0.00016438,2]
[327159051,1715865041194,-668.19364,0.00016438,2]
[327159053,1715865041203,-500.0,0.00016438,2]
[327159055,1715865041214,-668.19364,0.00016438,2]
[327159057,1715865041224,-500.0,0.00016438,2]
[327159059,1715865041233,-574.25,0.00016438,2]
[327159061,1715865041243,-1080.95,0.00016438,2]
[327159063,1715865041252,-2758.25,0.00016438,2]
[327159065,1715865041261,-500.0,0.00016438,2]
[327159067,1715865041270,-586.46672842,0.00016438,2]
[327159069,1715865041280,-500.0,0.00016438,2]
[327159071,1715865041290,-671.2,0.00016438,2]
[327159073,1715865041300,-500.0,0.00016438,2]
[327159075,1715865041309,-2064.20485684,0.00016438,2]
[327159077,1715865041323,-933.23514316,0.00016438,2]
[327159079,1715865041333,-500.0,0.00016438,2]
[327159081,1715865041342,-502.23,0.00016438,2]
[327159083,1715865041352,-1425.77,0.00016438,2]
[327159085,1715865041361,-500.0,0.00016438,2]
[327159087,1715865041370,-1769.81961834,0.00016438,2]
[327159089,1715865041381,-930.40038166,0.00016438,2]
[327159091,1715865041391,-6653.17,0.00016438,2]
[327159093,1715865041400,-618.73,0.00016438,2]
[327159095,1715865041410,-500.0,0.00016438,2]
[327159097,1715865041419,-1769.15,0.00016438,2]
[327159099,1715865041429,-1769.15,0.00016438,2]
[327159101,1715865041438,-1769.15,0.00016438,2]
[327159116,1715865041568,-1769.15,0.00016438,2]
[327159118,1715865041578,-1769.15,0.00016438,2]
[327159120,1715865041588,-1769.15,0.00016438,2]
[327159122,1715865041597,-1769.15,0.00016438,2]
[327159124,1715865041607,-1769.15,0.00016438,2]
[327159126,1715865041616,-1769.15,0.00016438,2]
[327159128,1715865041625,-1769.15,0.00016438,2]
[327159130,1715865041635,-500.0,0.00016438,2]
[327159132,1715865041644,-500.0,0.00016438,2]
[327159134,1715865041653,-1769.15,0.00016438,2]
[327159135,1715865041663,-587.93,0.00016438,2]
[327159137,1715865041672,-1769.15,0.00016438,2]
[327159139,1715865041682,-500.0,0.00016438,2]